[Event "European School-ch 2019"]
[Site "Mamaia"]
[Date "2019.06.03"]
[Round "4.15"]
[White "Creanga, Robert-Ionut"]
[Black "Andreev, Konstantin"]
[Result "1/2-1/2"]
[ECO "D35"]
[WhiteElo "2128"]
[BlackElo "2276"]
[Annotator "ChessBase"]
[PlyCount "102"]
[EventDate "2019.05.31"]
[EventType "swiss"]
[EventCountry "ROU"]
[SourceTitle "playchess.com"]
[Source "ChessBase"]
[SourceQuality "1"]
[TimeControl "40/5400+30:1800+30"]

1. d4 {[%emt 0:00:00]} d5 {[%emt 0:00:00]} 2. c4 {[%emt 0:00:00]} e6 {[%emt 0:00:00]} 3. Nc3 {[%emt 0:00:00]} Nf6 {[%emt 0:00:00]} 4. cxd5 {[%emt 0:00:00]} exd5 {[%emt 0:00:00]} 5. Bg5 {[%emt 0:00:00]} c6 {[%emt 0:00:05]} 6. e3 {[%emt 0:00:07]} Be7 {[%emt 0:00:08]} 7. Bd3 {[%emt 0:00:11]} O-O {[%emt 0:00:19]} 8. Qc2 {[%emt 0:00:27]} Nbd7 {[%emt 0:00:11]} 9. Nf3 {[%emt 0:00:08]} Re8 {[%emt 0:00:21]} 10. O-O {[%emt 0:00:07]} h6 {[%emt 0:00:06]} 11. Bh4 {[%emt 0:07:36]} Ne4 {[%emt 0:00:20]} 12. Bxe7 Qxe7 {[%emt 0:00:25]} 13. Bxe4 {[%emt 0:01:01]} dxe4 {[%emt 0:00:16]} 14. Nd2 {[%emt 0:00:18]} f5 {[%emt 0:01:18]} 15. a3 {[%emt 0:21:28]} Nf6 {[%emt 0:06:24]} 16. Ne2 {[%emt 0:08:54]} g5 {[%emt 0:05:10]} 17. b4 {[%emt 0:07:26]} Be6 {[%emt 0:01:17]} 18. Qb2 {[%emt 0:16:39]} Bf7 {[%emt 0:14:25]} 19. Rfe1 {[%emt 0:13:05]} Nd5 {[%emt 0:01:16]} 20. Nc3 {[%emt 0:01:46]} Qf6 {[%emt 0:01:14]} 21. a4 {[%emt 0:02:48]} Bg6 {[%emt 0:05:45]} 22. Nc4 {[%emt 0:07:58]} f4 {[%emt 0:02:41]} 23. Nxd5 {[%emt 0:02:10]} cxd5 {[%emt 0:00:29]} 24. Ne5 {[%emt 0:00:05]} f3 {[%emt 0:02:35]} 25. g4 {[%emt 0:06:27]} h5 {[%emt 0:01:06]} 26. gxh5 {[%emt 0:00:50]} Bf5 {[%emt 0:02:00]} 27. Kh1 {[%emt 0:01:37]} Qh6 {[%emt 0:01:33]} 28. Rg1 {[%emt 0:00:27]} Bh3 {[%emt 0:08:04]} 29. Ng4 {[%emt 0:01:17]} Bg2+ {[%emt 0:01:09]} 30. Rxg2 {[%emt 0:00:04]} fxg2+ 31. Kxg2 {[%emt 0:00:16]} Qe6 {[%emt 0:01:30]} 32. h3 {[%emt 0:00:34]} Rac8 {[%emt 0:04:32]} 33. Kh2 {[%emt 0:01:19]} Rf8 {[%emt 0:04:02]} 34. Rg1 {[%emt 0:00:57]} Rf3 {[%emt 0:00:57]} 35. Rc1 {[%emt 0:00:24]} Rcf8 {[%emt 0:00:53]} 36. Qe2 {[%emt 0:00:21]} a6 {[%emt 0:04:43]} 37. Kg2 {[%emt 0:00:30]} Qe8 {[%emt 0:00:44]} 38. Qa2 {[%emt 0:00:49]} Qe6 {[%emt 0:02:05]} 39. Qe2 {[%emt 0:00:29]} Kh8 {[%emt 0:09:43]} 40. h6 {[%emt 0:00:00]} Qe8 {[%emt 0:00:00]} 41. Qc2 {[%emt 0:17:33]} Qh5 {[%emt 0:04:02]} 42. Rh1 {[%emt 0:00:24]} Qf7 {[%emt 0:02:03]} 43. a5 {[%emt 0:02:33]} Kh7 {[%emt 0:08:45]} 44. Qd2 {[%emt 0:07:13]} Qg6 {[%emt 0:03:03]} 45. Qc2 {[%emt 0:00:50]} Qf7 {[%emt 0:01:59]} 46. Qd2 {[%emt 0:00:20]} Qc7 {[%emt 0:00:46]} 47. Rc1 {[%emt 0:00:39]} Qd7 {[%emt 0:00:57]} 48. Qc2 {[%emt 0:00:53]} R3f7 {[%emt 0:04:19]} 49. Qa2 {[%emt 0:02:46]} Rf3 {[%emt 0:04:27]} 50. Qc2 {[%emt 0:00:20]} R3f7 {[%emt 0:01:38]} 51. Qa2 {[%emt 0:00:11]} Rf3 {[%emt 0:00:11]} 1/2-1/2

[Event "European School-ch 2019"]
[Site "Mamaia"]
[Date "2019.06.03"]
[Round "4.16"]
[White "Sustov, Savva"]
[Black "Tashev, Aleksandar"]
[Result "0-1"]
[ECO "B46"]
[WhiteElo "1693"]
[BlackElo "2119"]
[Annotator "ChessBase"]
[PlyCount "108"]
[EventDate "2019.05.31"]
[EventType "swiss"]
[EventCountry "ROU"]
[SourceTitle "playchess.com"]
[Source "ChessBase"]
[SourceQuality "1"]
[TimeControl "40/5400+30:1800+30"]

1. e4 {[%emt 0:00:00]} c5 {[%emt 0:00:00]} 2. Nf3 {[%emt 0:00:00]} e6 {[%emt 0:00:04]} 3. d4 {[%emt 0:00:00]} cxd4 {[%emt 0:00:22]} 4. Nxd4 {[%emt 0:00:00]} Nc6 {[%emt 0:00:16]} 5. Nc3 {[%emt 0:00:00]} a6 {[%emt 0:01:04]} 6. Be2 {[%emt 0:03:56]} Qc7 {[%emt 0:00:36]} 7. O-O {[%emt 0:01:45]} b5 {[%emt 0:01:00]} 8. Kh1 {[%emt 0:14:53]} Nf6 {[%emt 0:03:19]} 9. f4 {[%emt 0:14:08]} b4 {[%emt 0:09:00]} 10. e5 {[%emt 0:02:40]} bxc3 {[%emt 0:03:02]} 11. exf6 {[%emt 0:00:14]} gxf6 {[%emt 0:00:36]} 12. bxc3 {[%emt 0:00:12]} Bb7 {[%emt 0:01:32]} 13. Bf3 {[%emt 0:01:21]} Na5 {[%emt 0:03:08]} 14. Nb3 {[%emt 0:27:24]} Nc4 {[%emt 0:04:05]} 15. Bxb7 {[%emt 0:03:52]} Qxb7 {[%emt 0:00:00]} 16. Qe2 {[%emt 0:00:05]} Rc8 {[%emt 0:03:06]} 17. Nd2 {[%emt 0:03:16]} Nd6 {[%emt 0:03:45]} 18. Ba3 {[%emt 0:02:51]} Nb5 {[%emt 0:03:56]} 19. Bb2 {[%emt 0:05:42]} Ba3 {[%emt 0:10:35]} 20. Bxa3 {[%emt 0:02:48]} Nxa3 {[%emt 0:00:05]} 21. Ne4 {[%emt 0:00:07]} Ke7 {[%emt 0:00:35]} 22. f5 {[%emt 0:06:02]} e5 {[%emt 0:02:43]} 23. Rfd1 {[%emt 0:03:23]} d5 {[%emt 0:02:11]} 24. Qd3 {[%emt 0:02:50]} Rhd8 {[%emt 0:03:54]} 25. Ng3 {[%emt 0:01:16]} Rd7 {[%emt 0:05:28]} 26. Nh5 {[%emt 0:01:27]} Rg8 {[%emt 0:02:16]} 27. Ng3 {[%emt 0:00:33]} Rc8 {[%emt 0:01:22]} 28. Ne2 {[%emt 0:00:11]} Qb6 {[%emt 0:01:47]} 29. Rf1 {[%emt 0:01:47]} Qb5 {[%emt 0:03:08]} 30. Qxb5 {[%emt 0:00:40]} Nxb5 {[%emt 0:00:22]} 31. a4 {[%emt 0:00:49]} Nxc3 {[%emt 0:00:07]} 32. Nxc3 {[%emt 0:00:07]} Rxc3 {[%emt 0:00:05]} 33. Ra2 {[%emt 0:00:26]} Rdc7 {[%emt 0:00:57]} 34. Rf2 {[%emt 0:00:01]} Kd6 {[%emt 0:03:14]} 35. g3 {[%emt 0:01:44]} R3c4 {[%emt 0:01:36]} 36. Kg2 {[%emt 0:00:06]} R7c5 {[%emt 0:00:05]} 37. a5 {[%emt 0:00:32]} Rb5 {[%emt 0:01:38]} 38. Rf3 {[%emt 0:00:14]} e4 {[%emt 0:00:15]} 39. Rf4 {[%emt 0:00:50]} Rcc5 {[%emt 0:00:30]} 40. Rh4 {[%emt 0:00:00]} Rxa5 {[%emt 0:00:00]} 41. Rxa5 {[%emt 0:00:27]} Rxa5 {[%emt 0:00:27]} 42. Rxh7 {[%emt 0:00:08]} Ra2 {[%emt 0:02:48]} 43. Rxf7 {[%emt 0:00:51]} Rxc2+ {[%emt 0:00:05]} 44. Kg1 {[%emt 0:01:23]} Ke5 {[%emt 0:00:06]} 45. g4 {[%emt 0:00:09]} e3 {[%emt 0:01:27]} 46. Rb7 {[%emt 0:05:10]} Kf4 {[%emt 0:00:31]} 47. Rb1 {[%emt 0:01:13]} Kxg4 {[%emt 0:00:24]} 48. Rd1 {[%emt 0:00:11]} Rd2 {[%emt 0:00:17]} 49. Re1 {[%emt 0:00:06]} Kf3 {[%emt 0:00:10]} 50. Rf1+ {[%emt 0:00:18]} Rf2 {[%emt 0:00:30]} 51. Re1 {[%emt 0:00:10]} d4 {[%emt 0:00:06]} 52. h4 {[%emt 0:00:04]} d3 {[%emt 0:00:19]} 53. h5 {[%emt 0:00:23]} e2 {[%emt 0:00:36]} 54. h6 {[%emt 0:00:05]} d2 {[%emt 0:00:09]} 0-1

[Event "European School-ch 2019"]
[Site "Mamaia"]
[Date "2019.06.03"]
[Round "4.17"]
[White "Pancewicz, Szymon"]
[Black "Tarhan, Adar"]
[Result "0-1"]
[ECO "C54"]
[WhiteElo "1724"]
[BlackElo "1964"]
[Annotator "NA"]
[PlyCount "68"]
[EventDate "2019.05.31"]
[EventType "swiss"]
[EventCountry "ROU"]
[SourceTitle "playchess.com"]
[Source "ChessBase"]
[SourceQuality "1"]
[TimeControl "40/5400+30:1800+30"]

1. e4 {[%emt 0:00:00]} e5 {[%emt 0:00:00]} 2. Nf3 {[%emt 0:00:26]} Nc6 {[%emt 0:00:00]} 3. Bc4 {[%emt 0:00:34]} Bc5 {[%emt 0:00:03]} 4. c3 {[%emt 0:00:30]} Nf6 {[%emt 0:00:17]} 5. d4 {[%emt 0:00:51]} exd4 {[%emt 0:00:39]} 6. e5 {[%emt 0:00:37]} d5 {[%emt 0:00:14]} 7. Bb5 {[%emt 0:01:03]} Ne4 {[%emt 0:00:16]} 8. cxd4 {[%emt 0:00:55]} Bb6 {[%emt 0:00:59]} 9. Nc3 {[%emt 0:02:31]} O-O {[%emt 0:06:29]} 10. Be3 {[%emt 0:02:08]} Bg4 $11 {[%emt 0:12:58]} 11. h3 {[%emt 0:01:08]} Bf5 {[%emt 0:10:00]} 12. O-O {[%emt 0:07:26]} Ne7 {[%emt 0:05:45]} 13. Nh4 {[%emt 0:05:50]} Be6 {[%emt 0:07:35]} 14. f4 {[%emt 0:11:42]} Ng3 {[%emt 0:19:47]} 15. Rf3 {[%emt 0:03:38]} Nef5 {[%emt 0:00:45]} 16. Nxf5 {[%emt 0:00:29]} Nxf5 {[%emt 0:00:07]} 17. Bf2 {[%emt 0:01:22]} c6 {[%emt 0:01:46]} 18. Ba4 {[%emt 0:01:25]} Nh4 {[%emt 0:02:29]} 19. Rd3 {[%emt 0:05:04]} Ng6 {[%emt 0:05:38]} 20. Ne2 {[%emt 0:06:29]} f6 {[%emt 0:06:56]} 21. Bc2 {[%emt 0:06:41]} fxe5 {[%emt 0:00:23]} 22. fxe5 {[%emt 0:00:33]} Nxe5 {[%emt 0:04:24]} 23. Re3 {[%emt 0:02:49]} Qf6 {[%emt 0:01:17]} 24. Bg3 {[%emt 0:14:03]} Nc4 {[%emt 0:00:53]} 25. Rf3 {[%emt 0:01:08]} Qe7 {[%emt 0:01:37]} 26. Qd3 {[%emt 0:05:47]} g6 {[%emt 0:00:44]} 27. Nf4 {[%emt 0:01:04]} Bf5 {[%emt 0:00:27]} 28. Qd1 {[%emt 0:02:39]} Nxb2 {[%emt 0:00:57]} 29. Qc1 {[%emt 0:01:16]} Nc4 {[%emt 0:00:55]} 30. Bxf5 {[%emt 0:00:38]} Bxd4+ {[%emt 0:00:21]} 31. Kh2 {[%emt 0:00:48]} Rxf5 {[%emt 0:00:11]} 32. Rb1 {[%emt 0:01:12]} Be5 {[%emt 0:01:54]} 33. Rfb3 {[%emt 0:03:42]} Qg5 {[%emt 0:03:56]} 34. h4 {[%emt 0:03:18]} Qxf4 {[%emt 0:01:11]} 0-1

[Event "European School-ch 2019"]
[Site "Mamaia"]
[Date "2019.06.03"]
[Round "4.18"]
[White "Baranciuc, Alexandr"]
[Black "Larichev, Prokhor"]
[Result "1-0"]
[ECO "B23"]
[WhiteElo "1900"]
[BlackElo "1764"]
[Annotator "NA"]
[PlyCount "79"]
[EventDate "2019.05.31"]
[EventType "swiss"]
[EventCountry "ROU"]
[SourceTitle "playchess.com"]
[Source "ChessBase"]
[SourceQuality "1"]
[TimeControl "40/5400+30:1800+30"]

1. e4 {[%emt 0:00:00]} c5 {[%emt 0:00:00]} 2. Nc3 {[%emt 0:00:00]} e6 {[%emt 0:00:24]} 3. g3 {[%emt 0:00:00]} Nc6 {[%emt 0:00:41]} 4. Bg2 {[%emt 0:00:07]} Nge7 {[%emt 0:01:44]} 5. d3 {[%emt 0:00:28]} d6 {[%emt 0:00:46]} 6. f4 {[%emt 0:00:22]} g6 {[%emt 0:02:35]} 7. Nf3 {[%emt 0:02:02]} Bg7 {[%emt 0:01:27]} 8. O-O {[%emt 0:00:14]} O-O {[%emt 0:00:45]} 9. Be3 {[%emt 0:00:50]} Nd4 {[%emt 0:02:51]} 10. Bf2 {[%emt 0:02:07]} Nec6 {[%emt 0:02:23]} 11. Nxd4 {[%emt 0:00:33]} Nxd4 {[%emt 0:00:19]} 12. Rb1 {[%emt 0:03:54]} Bd7 {[%emt 0:04:45]} 13. Ne2 $11 {[%emt 0:02:22]} Nxe2+ {[%emt 0:05:35]} 14. Qxe2 {[%emt 0:00:07]} Qa5 {[%emt 0:01:03]} 15. a3 {[%emt 0:02:26]} Bc6 {[%emt 0:05:09]} 16. h4 {[%emt 0:14:54]} Rae8 {[%emt 0:05:09]} 17. h5 {[%emt 0:01:49]} f5 {[%emt 0:01:47]} 18. hxg6 {[%emt 0:01:11]} hxg6 {[%emt 0:00:06]} 19. b4 {[%emt 0:11:25]} Qxa3 {[%emt 0:01:43]} 20. bxc5 {[%emt 0:00:07]} dxc5 {[%emt 0:00:55]} 21. e5 {[%emt 0:00:07]} Bxg2 {[%emt 0:01:50]} 22. Kxg2 {[%emt 0:00:05]} b6 {[%emt 0:05:10]} 23. Ra1 {[%emt 0:12:41]} Qc3 {[%emt 0:00:31]} 24. Rfb1 {[%emt 0:05:45]} Rb8 {[%emt 0:06:47]} 25. Rxa7 {[%emt 0:09:58]} Rf7 {[%emt 0:02:39]} 26. Ra4 {[%emt 0:03:00]} c4 {[%emt 0:00:49]} 27. Rxc4 {[%emt 0:00:54]} Qa5 {[%emt 0:00:06]} 28. Qf3 {[%emt 0:05:05]} Rfb7 {[%emt 0:01:58]} 29. Qc6 {[%emt 0:01:04]} Qd5+ {[%emt 0:00:16]} 30. Qxd5 {[%emt 0:00:06]} exd5 {[%emt 0:00:02]} 31. Rc6 {[%emt 0:00:09]} b5 {[%emt 0:00:09]} 32. Rxg6 {[%emt 0:01:08]} Kf7 {[%emt 0:00:09]} 33. Rd6 {[%emt 0:00:05]} Ra8 {[%emt 0:00:19]} 34. Rxd5 {[%emt 0:00:56]} Ra2 {[%emt 0:00:06]} 35. Rdxb5 {[%emt 0:00:52]} Rxb5 {[%emt 0:00:04]} 36. Rxb5 {[%emt 0:00:04]} Rxc2 {[%emt 0:00:02]} 37. d4 {[%emt 0:01:33]} Rd2 {[%emt 0:00:19]} 38. d5 {[%emt 0:00:20]} Ke7 {[%emt 0:00:04]} 39. Rb7+ {[%emt 0:00:08]} Kf8 {[%emt 0:00:04]} 40. d6 {[%emt 0:00:00]} 1-0

[Event "European School-ch 2019"]
[Site "Mamaia"]
[Date "2019.06.03"]
[Round "4.19"]
[White "Durak, Can"]
[Black "Samunenkov, Ihor"]
[Result "1-0"]
[ECO "A70"]
[WhiteElo "1646"]
[BlackElo "1972"]
[Annotator "NA RC"]
[PlyCount "129"]
[EventDate "2019.05.31"]
[EventType "swiss"]
[EventCountry "ROU"]
[SourceTitle "playchess.com"]
[Source "ChessBase"]
[SourceQuality "1"]
[TimeControl "40/5400+30:1800+30"]

1. d4 {[%emt 0:00:10]} Nf6 {[%emt 0:00:00]} 2. c4 {[%emt 0:00:23]} c5 {[%emt 0:00:00]} 3. d5 {[%emt 0:00:51]} e6 {[%emt 0:00:28]} 4. Nc3 {[%emt 0:00:48]} exd5 5. cxd5 {[%emt 0:00:12]} d6 {[%emt 0:00:15]} 6. e4 {[%emt 0:00:41]} g6 {[%emt 0:00:07]} 7. Nf3 {[%emt 0:00:23]} Bg7 {[%emt 0:00:27]} 8. Bd3 {[%emt 0:00:47]} O-O {[%emt 0:00:19]} 9. O-O {[%emt 0:01:31]} Bg4 {[%emt 0:06:56]} 10. Bf4 {[%emt 0:10:35]} a6 {[%emt 0:03:25]} 11. a4 {[%emt 0:03:07]} (11. h3 $5 {[%cal Rh3g4]} Bxf3 12. Qxf3 $14) 11... Qe7 {[%emt 0:01:22]} 12. h3 {[%emt 0:03:31]} Bxf3 {[%emt 0:01:15]} 13. Qxf3 {[%emt 0:00:11]} Nbd7 {[%emt 0:00:27]} 14. Qg3 {[%emt 0:02:12] A70: Modern Benoni: 6 e4 g6 7 Nf3} Ne5 {[%emt 0:05:01]} (14... Ne8 15. Rad1 Ne5 16. Be2 Nc7 17. Rfe1 b5 18. axb5 axb5 19. Nxb5 Nxb5 20. Bxb5 Rab8 21. Bf1 Rxb2 {½-½ (42) Kolay,A (2270)-Eswaran,A (2227) Charlotte 2019}) 15. Bxe5 {[%emt 0:04:41]} dxe5 {[%emt 0:01:05]} 16. Rfd1 $146 {[%emt 0:01:04]} ({Predecessor:} 16. Qe3 b6 17. Qe2 Nh5 18. g3 Qg5 19. h4 Qe7 20. Bxa6 f5 21. Bc4 Kh8 22. exf5 Rxf5 {1-0 (43) Ozeran,V (2059)-Niegsch,N (1986) Magdeburg 2013}) 16... Ne8 {[%emt 0:05:02]} 17. Qe3 {[%emt 0:02:57]} Rc8 {[%emt 0:03:30]} 18. Rac1 {[%emt 0:04:55]} Nd6 {[%emt 0:03:15]} 19. b3 {[%emt 0:03:25]} f5 {[%emt 0:11:40]} 20. f3 {[%emt 0:03:43]} Bf6 {[%emt 0:07:16]} 21. Qe2 {[%emt 0:03:50]} Bg5 {[%emt 0:04:17]} 22. Rc2 {[%emt 0:02:47]} Bf4 {[%emt 0:05:00]} 23. Kh1 {[%emt 0:07:48]} Qh4 {[%emt 0:04:34]} 24. Qe1 {[%emt 0:02:43]} Bg3 {[%emt 0:03:29]} 25. Qe2 {[%emt 0:03:52]} f4 {[%emt 0:03:52]} 26. Qf1 {[%emt 0:02:08]} g5 {[%emt 0:03:50]} 27. Ne2 {[%emt 0:02:20]} h5 {[%emt 0:13:06]} 28. Rdc1 {[%emt 0:02:36]} g4 {[%emt 0:03:59]} 29. Ng1 {[%emt 0:00:54]} Qe7 {[%emt 0:03:00]} 30. Rc3 {[%emt 0:02:36]} a5 {[%emt 0:01:56]} 31. Qe2 {[%emt 0:02:17]} gxh3 {[%emt 0:00:53]} 32. Nxh3 {[%emt 0:00:29]} b6 {[%emt 0:00:14]} 33. Bb5 {[%emt 0:02:39]} Rc7 {[%emt 0:01:30]} 34. Rb1 {[%emt 0:01:01]} Ra7 {[%emt 0:00:28]} 35. Bc6 {[%emt 0:02:55]} Qh4 {[%emt 0:00:43]} 36. Rc2 {[%emt 0:01:57]} Rd8 {[%emt 0:00:54]} 37. Rd2 {[%emt 0:01:00]} Kf8 {[%emt 0:00:59]} 38. Qd3 {[%emt 0:01:01]} Kg8 {[%emt 0:01:57]} 39. Qe2 {[%emt 0:00:28]} Kg7 {[%emt 0:00:38]} 40. Qd3 {[%emt 0:00:00]} Kf6 {[%emt 0:00:00]} 41. Kg1 {[%emt 0:00:41]} Rg8 {[%emt 0:01:24]} 42. Kf1 {[%emt 0:01:30]} Bh2 {[%emt 0:01:14]} 43. Qe2 {[%emt 0:02:24]} Rag7 {[%emt 0:07:53]} 44. Qf2 {[%emt 0:01:20]} Rg3 {[%emt 0:02:35]} 45. Bd7 {[%emt 0:02:57]} Ke7 {[%emt 0:02:40]} 46. Be6 {[%emt 0:00:17]} R8g7 {[%emt 0:00:08]} 47. Rbb2 {[%emt 0:01:55]} Qf6 {[%emt 0:03:42]} 48. Qe1 {[%emt 0:01:09]} Qf8 {[%emt 0:01:19]} 49. Qb1 {[%emt 0:01:27]} Nb7 {[%emt 0:02:52]} 50. Qd3 {[%emt 0:01:21]} Nd6 {[%emt 0:01:14]} 51. Qa6 {[%emt 0:02:02]} Qb8 {[%emt 0:03:58]} 52. Rdc2 {[%emt 0:01:51]} Kf6 {[%emt 0:03:49]} 53. Qd3 {[%emt 0:01:18]} Ke7 {[%emt 0:01:29] [#]} 54. Rd2 $2 {[%emt 0:02:03]} (54. Nxf4 $1 $18 {[%mdl 512]} exf4 55. e5) 54... Qc7 {[%emt 0:00:40]} 55. Nxf4 {[%emt 0:01:41]} (55. Rbc2 $14) 55... exf4 $4 {[%emt 0:01:44]} (55... c4 $17 {stays on course.} 56. bxc4 Qc5) 56. e5 {[%emt 0:00:11]} h4 {[%emt 0:01:03]} 57. exd6+ {[%emt 0:00:12]} Kxd6 {[%emt 0:00:11]} 58. Qe4 {[%emt 0:00:40]} R3g5 {[%emt 0:00:45]} 59. Re2 {[%emt 0:00:58]} Re7 $18 {[%emt 0:00:54]} 60. Rb1 {[%emt 0:05:28]} Qd8 {[%emt 0:00:55]} 61. Qc4 {[%emt 0:01:18]} Qh8 {[%emt 0:00:41]} 62. Qb5 {[%emt 0:00:36]} Kc7 {[%emt 0:00:27]} 63. d6+ {[%emt 0:00:43]} Kb7 {[%emt 0:00:46]} 64. dxe7 {[%emt 0:00:17]} Qd4 {[%emt 0:00:08]} 65. Qd7+ {[%emt 0:00:05]} 1-0

[Event "European School-ch 2019"]
[Site "Mamaia"]
[Date "2019.06.03"]
[Round "4.20"]
[White "Gurel, Ediz"]
[Black "Celik, Hasan Huseyin"]
[Result "1-0"]
[ECO "C15"]
[WhiteElo "1914"]
[BlackElo "1727"]
[Annotator "NA"]
[PlyCount "63"]
[EventDate "2019.05.31"]
[EventType "swiss"]
[EventCountry "ROU"]
[SourceTitle "playchess.com"]
[Source "ChessBase"]
[SourceQuality "1"]
[TimeControl "40/5400+30:1800+30"]

1. e4 {[%emt 0:00:00]} e6 {[%emt 0:00:00]} 2. d4 {[%emt 0:00:16]} d5 {[%emt 0:01:25]} 3. Nc3 {[%emt 0:00:17]} Bb4 {[%emt 0:00:05]} 4. Nge2 {[%emt 0:00:53]} Nf6 {[%emt 0:00:31]} 5. Bg5 {[%emt 0:04:41]} dxe4 {[%emt 0:10:50]} 6. a3 {[%emt 0:00:21]} Be7 {[%emt 0:00:28]} 7. Bxf6 {[%emt 0:00:25]} Bxf6 {[%emt 0:01:20]} 8. Nxe4 {[%emt 0:00:09]} Be7 {[%emt 0:00:10]} 9. g3 {[%emt 0:01:36]} Nd7 10. Bg2 {[%emt 0:01:25]} O-O {[%emt 0:04:46]} 11. O-O $11 {[%emt 0:01:31]} Nf6 {[%emt 0:02:18]} 12. c4 {[%emt 0:04:43]} c6 {[%emt 0:02:14]} 13. Qc2 {[%emt 0:02:02]} Qc7 {[%emt 0:01:15]} 14. Rac1 {[%emt 0:02:43]} Rd8 {[%emt 0:01:57]} 15. Rfd1 {[%emt 0:02:06]} b6 {[%emt 0:06:14]} 16. Nf4 {[%emt 0:08:19]} Bb7 {[%emt 0:02:58]} 17. Ng5 {[%emt 0:13:20]} Qc8 {[%emt 0:11:52]} 18. Bh3 {[%emt 0:02:21]} Rd6 {[%emt 0:14:47]} 19. c5 {[%emt 0:04:45]} bxc5 {[%emt 0:00:00]} 20. dxc5 {[%emt 0:00:05]} Rxd1+ 21. Rxd1 {[%emt 0:00:06]} Qc7 {[%emt 0:03:02]} 22. Nfxe6 {[%emt 0:01:48]} Qa5 {[%emt 0:01:27]} 23. Nxf7 {[%emt 0:21:49]} Kxf7 {[%emt 0:06:03]} 24. Ng5+ {[%emt 0:00:09]} Kf8 {[%emt 0:00:08]} 25. Qb3 {[%emt 0:00:11]} Nd5 {[%emt 0:01:29]} 26. Qxb7 {[%emt 0:00:18]} Re8 {[%emt 0:01:06]} 27. Nxh7+ {[%emt 0:01:07]} Kg8 {[%emt 0:00:55]} 28. Qxc6 {[%emt 0:00:08]} Rd8 {[%emt 0:00:22]} 29. Rxd5 {[%emt 0:01:04]} Qe1+ {[%emt 0:00:06]} 30. Bf1 {[%emt 0:00:03]} Rxd5 31. Qxd5+ {[%emt 0:00:10]} Kxh7 {[%emt 0:00:25]} 32. Kg2 {[%emt 0:00:53]} 1-0

[Event "European School-ch 2019"]
[Site "Mamaia"]
[Date "2019.06.03"]
[Round "4.21"]
[White "Nemsadze, Daviti"]
[Black "Krawczyk, Flawian"]
[Result "1-0"]
[ECO "E97"]
[WhiteElo "1803"]
[BlackElo "1795"]
[Annotator "NA"]
[PlyCount "125"]
[EventDate "2019.05.31"]
[EventType "swiss"]
[EventCountry "ROU"]
[SourceTitle "playchess.com"]
[Source "ChessBase"]
[SourceQuality "1"]
[TimeControl "40/5400+30:1800+30"]

1. Nf3 {[%emt 0:00:00]} Nf6 {[%emt 0:00:00]} 2. c4 {[%emt 0:00:00]} g6 {[%emt 0:00:00]} 3. Nc3 {[%emt 0:00:00]} Bg7 {[%emt 0:00:00]} 4. e4 {[%emt 0:00:02]} d6 {[%emt 0:00:00]} 5. d4 {[%emt 0:00:06]} O-O {[%emt 0:00:02]} 6. Be2 {[%emt 0:00:03]} e5 {[%emt 0:00:10]} 7. O-O {[%emt 0:05:02]} Nc6 {[%emt 0:01:24]} 8. d5 {[%emt 0:08:08]} Ne7 {[%emt 0:00:06]} 9. h3 {[%emt 0:00:20]} Nh5 {[%emt 0:02:07]} 10. Ne1 {[%emt 0:08:18]} Nf4 {[%emt 0:01:19]} 11. Nd3 {[%emt 0:02:18]} Nxe2+ {[%emt 0:00:18]} 12. Qxe2 {[%emt 0:00:04]} f5 $11 {[%emt 0:01:00]} 13. f3 {[%emt 0:19:10]} f4 {[%emt 0:04:40]} 14. c5 {[%emt 0:04:24]} g5 {[%emt 0:03:18]} 15. Bd2 {[%emt 0:01:09]} c6 {[%emt 0:06:19]} 16. cxd6 {[%emt 0:22:33]} Qxd6 {[%emt 0:01:32]} 17. dxc6 {[%emt 0:00:51]} bxc6 {[%emt 0:05:24]} 18. Nf2 {[%emt 0:03:14]} c5 {[%emt 0:01:35]} 19. Rfd1 {[%emt 0:03:36]} Ba6 {[%emt 0:02:28]} 20. Qe1 {[%emt 0:00:26]} Qe6 {[%emt 0:02:32]} 21. Na4 {[%emt 0:01:00]} Qc6 {[%emt 0:06:46]} 22. b3 {[%emt 0:00:06]} Bb5 {[%emt 0:00:50]} 23. Nc3 {[%emt 0:00:17]} Rfd8 {[%emt 0:05:02]} 24. Rac1 {[%emt 0:00:56]} Rac8 {[%emt 0:02:21]} 25. Nxb5 {[%emt 0:06:40]} Qxb5 {[%emt 0:00:41]} 26. Rc4 {[%emt 0:00:01]} Rd4 {[%emt 0:03:38]} 27. Rdc1 {[%emt 0:01:36]} Qd7 {[%emt 0:02:33]} 28. Ba5 {[%emt 0:00:51]} Rxc4 {[%emt 0:03:44]} 29. Rxc4 {[%emt 0:00:09]} Qd6 {[%emt 0:03:25]} 30. Qc3 {[%emt 0:00:27]} Bf8 {[%emt 0:01:23]} 31. Nd3 {[%emt 0:01:36]} Ng6 {[%emt 0:01:11]} 32. Kh2 {[%emt 0:01:31]} h5 {[%emt 0:01:46]} 33. Nxc5 {[%emt 0:01:01]} g4 {[%emt 0:01:26]} 34. Nd3 {[%emt 0:02:24]} g3+ {[%emt 0:01:56]} 35. Kh1 {[%emt 0:01:15]} Rxc4 {[%emt 0:00:19]} 36. Qxc4+ {[%emt 0:00:04]} Kh8 {[%emt 0:00:37]} 37. Bb4 {[%emt 0:01:02]} Qd8 {[%emt 0:00:38]} 38. Bc3 {[%emt 0:01:21]} Bg7 {[%emt 0:00:32]} 39. b4 {[%emt 0:01:15]} Qd7 {[%emt 0:01:03]} 40. b5 {[%emt 0:00:00]} Kh7 {[%emt 0:00:00]} 41. Kg1 {[%emt 0:04:25]} Qb7 {[%emt 0:02:34]} 42. Qc6 {[%emt 0:00:34]} Qf7 {[%emt 0:00:32]} 43. Nb4 {[%emt 0:00:36]} Qe7 {[%emt 0:00:39]} 44. Qc4 {[%emt 0:01:11]} Qd8 {[%emt 0:00:20]} 45. Nd5 {[%emt 0:00:27]} Qb8 {[%emt 0:01:08]} 46. Qc6 {[%emt 0:00:34]} Qf8 {[%emt 0:03:57]} 47. Bb4 {[%emt 0:00:12]} Qd8 {[%emt 0:01:42]} 48. Qb7 {[%emt 0:01:50]} Kh6 {[%emt 0:01:06]} 49. Qc6 {[%emt 0:04:07]} Kh7 {[%emt 0:00:57]} 50. Qe6 {[%emt 0:01:06]} Kh6 {[%emt 0:01:11]} 51. Kf1 {[%emt 0:00:53]} Kh7 {[%emt 0:01:12]} 52. Ke2 {[%emt 0:00:07]} Nh4 {[%emt 0:00:25]} 53. Kf1 {[%emt 0:01:10]} Ng6 {[%emt 0:00:02]} 54. a4 {[%emt 0:00:04]} Bf8 {[%emt 0:01:45]} 55. Bc3 {[%emt 0:01:31]} Bg7 {[%emt 0:00:47]} 56. Qa6 {[%emt 0:02:29]} Ne7 {[%emt 0:01:01]} 57. Qe6 {[%emt 0:01:52]} Ng6 {[%emt 0:02:43]} 58. a5 {[%emt 0:00:36]} Nh4 {[%emt 0:02:18]} 59. Qf7 {[%emt 0:01:00]} Ng6 {[%emt 0:02:03]} 60. Qxa7 {[%emt 0:00:51]} Kh6 {[%emt 0:00:22]} 61. Qc7 {[%emt 0:00:17]} Qe8 {[%emt 0:00:12]} 62. Qc6 {[%emt 0:00:02]} Qd8 {[%emt 0:00:25]} 63. b6 {[%emt 0:00:19]} 1-0